fUSD/lending_fUSD_20251217
["ID","MTS","AMOUNT","RATE_DAILY","PERIOD"]
[398921344,1765998638386,-29204.14,0.00014058,2]
[398921345,1765998638395,-398.39,0.00014058,2]
[398921346,1765998638404,-150.99,0.00014058,2]
[398921347,1765998638417,-9999.99,0.00014058,2]
[398921348,1765998638426,-28635.52,0.00014058,2]
[398921349,1765998638435,-427.63,0.00014058,2]
[398921350,1765998638444,-7183.72,0.00014058,2]
[398921351,1765998638454,-1530.11,0.00014058,2]
[398921352,1765998638463,-68662.91,0.00014058,2]
[398921353,1765998638474,-9999.99,0.00014058,2]
[398921354,1765998638483,-500.0,0.00014059,2]
[398921355,1765998638493,-547.57611189,0.00014059,2]
[398921356,1765998638502,-500.0,0.00014059,2]
[398921357,1765998638511,-446.02634786,0.00014059,2]
[398921358,1765998638520,-500.0,0.00014059,2]
[398921359,1765998638530,-207.18201818,0.00014059,2]
[398921360,1765998638539,-500.0,0.00014059,2]
[398921361,1765998638548,-500.0,0.00014059,2]
[398921362,1765998638558,-228.19281027,0.00014059,2]
[398921363,1765998638567,-559.75669128,0.00014059,2]
[398921364,1765998638576,-500.0,0.00014059,2]
[398921365,1765998638586,-500.0,0.00014059,2]
[398921366,1765998638597,-500.0,0.00014059,2]
[398921367,1765998638607,-500.0,0.00014059,2]
[398921368,1765998638617,-500.0,0.00014059,2]
[398921369,1765998638627,-500.0,0.00014059,2]
[398921370,1765998638637,-500.0,0.00014059,2]
[398921371,1765998638647,-500.0,0.00014059,2]
[398921372,1765998638656,-520.67260897,0.00014059,2]
[398921373,1765998638666,-500.0,0.00014059,2]
[398921374,1765998638675,-558.32,0.00014059,2]
[398921375,1765998638685,-500.0,0.00014059,2]
[398921376,1765998638695,-392.85536899,0.00014059,2]
[398921377,1765998638704,-515.02785711,0.00014059,2]
[398921378,1765998638714,-500.0,0.00014059,2]
[398921379,1765998638724,-550.52788879,0.00014059,2]
[398921380,1765998638734,-500.0,0.00014059,2]
[398921381,1765998638743,-500.0,0.00014059,2]
[398921382,1765998638752,-514.23721699,0.00014059,2]
[398921383,1765998638761,-500.0,0.00014059,2]
[398921384,1765998638771,-500.0,0.00014059,2]
[398921385,1765998638781,-500.0,0.00014059,2]
[398921386,1765998638791,-500.0,0.00014059,2]
[398921387,1765998638800,-500.0,0.00014059,2]
[398921388,1765998638810,-500.0,0.00014059,2]
[398921389,1765998638820,-500.0,0.00014059,2]
[398921390,1765998638830,-500.0,0.00014059,2]
[398921391,1765998638840,-500.0,0.00014059,2]
[398921392,1765998638852,-500.0,0.00014059,2]
[398921393,1765998638862,-500.0,0.00014059,2]
[398921394,1765998638872,-615.3449817,0.00014059,2]
[398921395,1765998638883,-500.0,0.00014059,2]
[398921396,1765998638893,-500.0,0.00014059,2]
[398921397,1765998638904,-500.0,0.00014059,2]
[398921398,1765998638913,-500.0,0.00014059,2]
[398921399,1765998638923,-422.65917297,0.00014059,2]
[398921400,1765998638933,-1000.0,0.0001406,2]
[398921401,1765998638943,-5893.7223,0.0001406,2]
[398921402,1765998638952,-500.0,0.00014159,2]
[398921403,1765998638962,-500.0,0.00014159,2]
[398921404,1765998638972,-500.0,0.00014159,2]
[398921405,1765998638981,-500.0,0.00014159,2]
[398921406,1765998638990,-950.22,0.00014159,2]
[398921407,1765998639000,-500.0,0.00014159,2]
[398921408,1765998639009,-500.0,0.00014159,2]
[398921409,1765998639018,-286.90864955,0.00014159,2]
[398921410,1765998639027,-500.0,0.00014159,2]
[398921411,1765998639037,-500.0,0.00014159,2]
[398921412,1765998639046,-500.0,0.00014159,2]
[398921413,1765998639055,-500.0,0.00014159,2]
[398921414,1765998639065,-500.0,0.00014159,2]
[398921415,1765998639074,-500.0,0.00014159,2]
[398921416,1765998639085,-414.65148789,0.00014159,2]
[398921417,1765998639094,-500.0,0.00014231,2]
[398921418,1765998639105,-1053.62,0.00014325,2]
[398921419,1765998639115,-500.0,0.00014505,2]
[398921420,1765998639124,-1053.62,0.00014599,2]
[398921421,1765998639134,-200.0,0.000146,2]
[398921422,1765998639144,-500.0,0.000146,2]
[398921423,1765998639153,-200.0,0.000146,2]
[398921424,1765998639163,-500.0,0.0001469,2]
[398921425,1765998639172,-500.0,0.0001469,2]
[398921426,1765998639182,-500.0,0.0001469,2]
[398921427,1765998639191,-507.58085113,0.0001469,2]
[398921428,1765998639204,-500.0,0.0001469,2]
[398921429,1765998639214,-950.22,0.0001469,2]
[398921430,1765998639224,-950.22,0.0001469,2]
[398921431,1765998639233,-950.22,0.0001469,2]
[398921432,1765998639243,-950.22,0.0001469,2]
[398921433,1765998639252,-500.0,0.0001469,2]
[398921434,1765998639262,-500.0,0.0001469,2]
[398921435,1765998639271,-500.0,0.0001469,2]
[398921436,1765998639280,-504.05914821,0.0001469,2]
[398921437,1765998639289,-500.0,0.0001469,2]
[398921438,1765998639298,-500.0,0.0001469,2]
[398921439,1765998639307,-500.0,0.0001469,2]
[398921440,1765998639316,-272.84521117,0.0001469,2]
[398921441,1765998639325,-500.0,0.0001469,2]
[398921442,1765998639335,-500.0,0.0001469,2]
[398921443,1765998639348,-500.0,0.0001469,2]
[398921444,1765998639357,-536.90196628,0.0001469,2]
[398921445,1765998639366,-500.0,0.0001469,2]
[398921446,1765998639376,-500.0,0.0001469,2]
[398921447,1765998639386,-500.0,0.0001469,2]
[398921448,1765998639395,-500.0,0.0001469,2]
[398921449,1765998639404,-500.0,0.0001469,2]
[398921451,1765998639413,-500.0,0.00014724,2]
[398921453,1765998639424,-500.0,0.00014724,2]
[398921455,1765998639434,-500.0,0.00014779,2]
[398921457,1765998639443,-212.1,0.00014785,2]
[398921459,1765998639453,-408.15613345,0.00014832,2]
[398921461,1765998639462,-1053.62,0.00014873,2]
[398921463,1765998639472,-950.22,0.00015006,2]
[398921465,1765998639481,-195.0,0.00015053,2]
[398921467,1765998639490,-300.0,0.00015053,2]
[398921469,1765998639500,-250.0,0.00015053,2]
[398921471,1765998639510,-302.64270691,0.00015053,2]
[398921473,1765998639519,-300.24027772,0.00015053,2]
[398921475,1765998639530,-500.0,0.00015053,2]
[398921477,1765998639539,-300.0,0.00015068,2]
[398921480,1765998639548,-300.0,0.00015068,2]
[398921483,1765998639558,-255.0,0.00015073,2]
[398921486,1765998639567,-500.0,0.00015103,2]
[398921489,1765998639576,-500.0,0.00015103,2]
[398921491,1765998639585,-1680.0,0.00015139,2]
[398921495,1765998639596,-1053.62,0.00015147,2]
[398921498,1765998639609,-200.0,0.00015148,2]
[398921501,1765998639618,-500.0,0.00015148,2]
[398921503,1765998639628,-200.0,0.00015148,2]
[398921507,1765998639638,-13296.18727066,0.00015163,2]
[398921509,1765998639647,-9523.83814419,0.00015164,2]
[398921511,1765998639656,-420.0,0.0001529,2]
[398921514,1765998639665,-227.0,0.0001529,2]
[398921517,1765998639675,-500.0,0.00015327,2]
[398921520,1765998639685,-674.34505657,0.0001538,2]
[398921523,1765998639695,-1053.62,0.00015421,2]
[398921524,1765998639705,-334.86,0.0001549,2]
[398921526,1765998639717,-212.1,0.00015525,2]
[398921528,1765998639726,-500.0,0.00015601,2]
[398921530,1765998639736,-1053.62,0.00015695,2]
[398921532,1765998639745,-500.0,0.00015696,2]
[398921533,1765998639755,-200.0,0.00015696,2]
[398921534,1765998639765,-200.0,0.00015717,2]
[398921535,1765998639774,-500.0,0.00015875,2]
[398921536,1765998639783,-302.58522222,0.000159,2]
[398921537,1765998639792,-302.5852222,0.000159,2]
[398921538,1765998639801,-302.5852222,0.000159,2]
[398921539,1765998639812,-302.5852222,0.000159,2]
[398921540,1765998639822,-302.5852222,0.000159,2]
[398921541,1765998639832,-1053.62,0.00015969,2]
[398921542,1765998639842,-9999.99,0.00016116,2]
[398921543,1765998639855,-500.0,0.00016149,2]
[398921545,1765998639864,-200.0,0.0001622,2]
[398921546,1765998639874,-1000.0,0.00016235,2]
[398921548,1765998639883,-1053.62,0.00016243,2]
[398921550,1765998639892,-500.0,0.00016244,2]
[398921552,1765998639903,-200.0,0.00016244,2]
[398921554,1765998639912,-212.1,0.00016264,2]
[398921555,1765998639922,-433.0,0.00016273,2]
[398921557,1765998639931,-13296.18727066,0.00016367,2]
[398921559,1765998639940,-9523.83814419,0.00016369,2]
[398921561,1765998639949,-228.0,0.000164,2]
[398921563,1765998639958,-319.0,0.000164,2]
[398921564,1765998639967,-182.0,0.000164,2]
[398921566,1765998639976,-183.11478265,0.000164,2]
[398921568,1765998639986,-1814.22114664,0.00016413,2]
[398921570,1765998639995,-500.0,0.00016423,2]
[398921572,1765998640004,-300.0,0.00016438,2]
[398921574,1765998640013,-300.0,0.00016438,2]
[398921575,1765998640022,-300.0,0.00016438,2]
[398921576,1765998640031,-300.0,0.00016438,2]
[398921577,1765998640041,-300.0,0.00016438,2]
[398921579,1765998640050,-300.0,0.00016438,2]
[398921580,1765998640060,-300.0,0.00016438,2]
[398921581,1765998640070,-300.0,0.00016438,2]
[398921582,1765998640082,-300.0,0.00016438,2]
[398921583,1765998640092,-300.0,0.00016438,2]
[398921584,1765998640106,-300.0,0.00016438,2]
[398921585,1765998640115,-300.0,0.00016438,2]
[398921586,1765998640125,-300.0,0.00016438,2]
[398921587,1765998640135,-300.0,0.00016438,2]
[398921588,1765998640144,-300.0,0.00016438,2]
[398921589,1765998640154,-300.0,0.00016438,2]
[398921590,1765998640163,-300.0,0.00016438,2]
[398921591,1765998640173,-300.0,0.00016438,2]
[398921592,1765998640182,-300.0,0.00016438,2]
[398921593,1765998640192,-300.0,0.00016438,2]
[398921594,1765998640201,-300.0,0.00016438,2]
[398921595,1765998640210,-300.0,0.00016438,2]
[398921596,1765998640219,-197.26900433,0.00016438,2]
[398921597,1765998640228,-1096.52610608,0.00016438,2]
[398921598,1765998640237,-1096.52610608,0.00016438,2]
[398921599,1765998640246,-1096.52610608,0.00016438,2]
[398921600,1765998640255,-1096.52610608,0.00016438,2]
[398921601,1765998640265,-1096.52610608,0.00016438,2]
[398921602,1765998640274,-1096.52610608,0.00016438,2]
[398921603,1765998640283,-1096.52610608,0.00016438,2]
[398921604,1765998640292,-1096.52610608,0.00016438,2]
[398921605,1765998640302,-1096.52610608,0.00016438,2]
[398921606,1765998640311,-1096.52610608,0.00016438,2]
[398921607,1765998640321,-1096.52610608,0.00016438,2]
[398921608,1765998640331,-1096.52610608,0.00016438,2]
[398921609,1765998640345,-1096.52610608,0.00016438,2]
[398921610,1765998640359,-1096.52610608,0.00016438,2]
[398921611,1765998640368,-1096.52610608,0.00016438,2]
[398921612,1765998640377,-1096.52610608,0.00016438,2]
[398921613,1765998640388,-1096.52610608,0.00016438,2]
[398921614,1765998640397,-1096.52610608,0.00016438,2]
[398921615,1765998640407,-1096.52610608,0.00016438,2]
[398921616,1765998640417,-1096.52610608,0.00016438,2]
[398921617,1765998640427,-1096.52610608,0.00016438,2]
[398921618,1765998640436,-1096.52610608,0.00016438,2]
[398921619,1765998640445,-1096.52610608,0.00016438,2]
[398921620,1765998640455,-1096.52610608,0.00016438,2]
[398921621,1765998640464,-1096.52610608,0.00016438,2]
[398921622,1765998640474,-1096.52610608,0.00016438,2]
[398921623,1765998640484,-1096.52610608,0.00016438,2]
[398921624,1765998640493,-1096.52610608,0.00016438,2]
[398921625,1765998640503,-1096.52610608,0.00016438,2]
[398921626,1765998640512,-1096.52610608,0.00016438,2]
[398921627,1765998640523,-1096.52610608,0.00016438,2]
[398921628,1765998640532,-1096.52610608,0.00016438,2]
[398921629,1765998640541,-1096.52610608,0.00016438,2]
[398921630,1765998640550,-1096.52610608,0.00016438,2]
[398921631,1765998640560,-1096.52610608,0.00016438,2]
[398921632,1765998640570,-1096.52610608,0.00016438,2]
[398921633,1765998640579,-1096.52610608,0.00016438,2]
[398921634,1765998640589,-1096.52610608,0.00016438,2]
[398921635,1765998640602,-1096.52610608,0.00016438,2]
[398921636,1765998640612,-1096.52610608,0.00016438,2]
[398921637,1765998640622,-1096.52610608,0.00016438,2]
[398921638,1765998640631,-1096.52610608,0.00016438,2]
[398921639,1765998640641,-1096.52610608,0.00016438,2]
[398921640,1765998640651,-1096.52610608,0.00016438,2]
[398921641,1765998640661,-1096.52610608,0.00016438,2]
[398921642,1765998640670,-1096.52610608,0.00016438,2]
[398921643,1765998640680,-1096.52610608,0.00016438,2]
[398921644,1765998640689,-1096.52610608,0.00016438,2]
[398921645,1765998640700,-1096.52610608,0.00016438,2]
[398921646,1765998640710,-1096.52610608,0.00016438,2]
[398921647,1765998640719,-1096.52610608,0.00016438,2]
[398921648,1765998640729,-1096.52610608,0.00016438,2]
[398921649,1765998640738,-1096.52610608,0.00016438,2]
[398921650,1765998640748,-1096.52610608,0.00016438,2]
[398921651,1765998640757,-1096.52610608,0.00016438,2]
[398921652,1765998640767,-1096.52610608,0.00016438,2]
[398921653,1765998640776,-1096.52610608,0.00016438,2]
[398921654,1765998640785,-1106.49452523,0.00016438,2]
[398921655,1765998640794,-1106.49452523,0.00016438,2]
[398921656,1765998640803,-1106.49452523,0.00016438,2]
[398921657,1765998640812,-1106.49452523,0.00016438,2]
[398921658,1765998640821,-1106.49452523,0.00016438,2]
[398921659,1765998640830,-1106.49452523,0.00016438,2]
[398921660,1765998640839,-1106.49452523,0.00016438,2]
[398921661,1765998640854,-1106.49452523,0.00016438,2]
[398921662,1765998640863,-1106.49452523,0.00016438,2]
[398921663,1765998640873,-1106.49452523,0.00016438,2]
[398921664,1765998640883,-1106.49452523,0.00016438,2]
[398921665,1765998640892,-1106.49452523,0.00016438,2]
[398921666,1765998640902,-1106.49452523,0.00016438,2]
[398921667,1765998640911,-1106.49452523,0.00016438,2]
[398921668,1765998640921,-1106.49452523,0.00016438,2]
[398921669,1765998640931,-1106.49452523,0.00016438,2]
[398921670,1765998640940,-1106.49452523,0.00016438,2]
[398921671,1765998640950,-1106.49452523,0.00016438,2]
[398921672,1765998640959,-1106.49452523,0.00016438,2]
[398921673,1765998640969,-1106.49452523,0.00016438,2]
[398921674,1765998640978,-1106.49452523,0.00016438,2]
[398921675,1765998640988,-1106.49452523,0.00016438,2]
[398921676,1765998640997,-1106.49452523,0.00016438,2]
[398921677,1765998641007,-1106.49452523,0.00016438,2]
[398921678,1765998641016,-1106.49452523,0.00016438,2]
[398921679,1765998641026,-1106.49452523,0.00016438,2]
[398921680,1765998641318,-1106.49452523,0.00016438,2]
[398921681,1765998641330,-1106.49452523,0.00016438,2]
[398921682,1765998641340,-1106.49452523,0.00016438,2]
[398921683,1765998641355,-1106.49452523,0.00016438,2]
[398921684,1765998641365,-1106.49452523,0.00016438,2]
[398921685,1765998641374,-1106.49452523,0.00016438,2]
[398921686,1765998641385,-225.73,0.00016438,2]
[398921687,1765998641395,-1053.62,0.00016517,2]
[398921688,1765998641404,-1000.0,0.00016633,2]
[398921689,1765998641414,-500.0,0.00016643,2]
[398921690,1765998641424,-500.0,0.00016643,2]
[398921691,1765998641434,-950.22,0.00016695,2]
[398921692,1765998641445,-391.87908379,0.00016697,2]
[398921693,1765998641455,-587.0,0.00016752,2]
[398921694,1765998641465,-207.4,0.00016791,2]
[398921695,1765998641474,-1053.62,0.00016791,2]
[398921696,1765998641483,-200.0,0.00016792,2]
[398921697,1765998641493,-8112.0,0.00016843,2]
[398921698,1765998641503,-2291.85364901,0.00016874,2]
[398921699,1765998641512,-674.34505657,0.00016899,2]
[398921700,1765998641521,-10000.0,0.000169,2]
[398921701,1765998641531,-453.0240721,0.000169,2]
[398921702,1765998641541,-200.01825375,0.00016935,2]
[398921703,1765998641550,-500.0,0.00016973,2]
[398921704,1765998641559,-500.0,0.00016973,2]
[398921705,1765998641568,-163.04694688,0.00016973,2]
[398921706,1765998641578,-172.70389334,0.00016973,2]
[398921707,1765998641587,-500.0,0.00016973,2]
[398921708,1765998641596,-500.0,0.00016973,2]
[398921709,1765998641608,-163.6645509,0.00016973,2]
[398921710,1765998641618,-500.0,0.00016973,2]
[398921711,1765998641627,-172.5432271,0.00016973,2]
[398921712,1765998641637,-223.96742893,0.00016973,2]
[398921713,1765998641646,-500.0,0.00016973,2]
[398921714,1765998641655,-500.0,0.00016973,2]
[398921715,1765998641665,-161.46144241,0.00016973,2]
[398921716,1765998641674,-167.07033056,0.00016973,2]
[398921717,1765998641683,-174.68173524,0.00016973,2]
[398921718,1765998641692,-500.0,0.00016973,2]
[398921719,1765998641701,-500.0,0.00016973,2]
[398921720,1765998641710,-500.0,0.00016973,2]
[398921721,1765998641720,-500.0,0.00016973,2]
[398921722,1765998641729,-362.45517721,0.00016973,2]
[398921723,1765998641739,-500.0,0.00016973,2]
[398921724,1765998641748,-500.0,0.00016973,2]
[398921725,1765998641757,-276.35412541,0.00016973,2]
[398921726,1765998641766,-500.0,0.00016973,2]
[398921727,1765998641776,-636.696853,0.00016973,2]
[398921728,1765998641785,-500.0,0.00016973,2]
[398921729,1765998641794,-535.93880539,0.00016973,2]
[398921730,1765998641803,-500.0,0.00016973,2]
[398921731,1765998641813,-500.0,0.00016973,2]
[398921732,1765998641823,-165.24964768,0.00016973,2]
[398921733,1765998641832,-500.65867875,0.00016973,2]
[398921734,1765998641842,-500.0,0.00016973,2]
[398921735,1765998641854,-161.98577807,0.00016973,2]
[398921736,1765998641863,-179.43625326,0.00016973,2]
[398921737,1765998641873,-500.0,0.00016973,2]
[398921738,1765998641882,-216.18014628,0.00016973,2]
[398921739,1765998641891,-500.0,0.00016973,2]
[398921740,1765998641901,-165.73663313,0.00016973,2]
[398921741,1765998641911,-168.53762372,0.00016973,2]
[398921742,1765998641920,-500.0,0.00016973,2]
[398921743,1765998641930,-500.0,0.00016973,2]
[398921744,1765998641939,-162.80787779,0.00016973,2]
[398921745,1765998641949,-500.0,0.00016973,2]
[398921746,1765998641958,-500.0,0.00016973,2]
[398921747,1765998641969,-500.0,0.00016973,2]
[398921748,1765998641979,-500.0,0.00016973,2]
[398921749,1765998641989,-500.0,0.00016973,2]
[398921750,1765998641999,-562.4542945,0.00016973,2]
[398921751,1765998642010,-500.1936276,0.00016973,2]
[398921752,1765998642020,-160.16120282,0.00016973,2]
[398921753,1765998642029,-500.0,0.00016973,2]
[398921754,1765998642039,-500.0,0.00016973,2]
[398921755,1765998642048,-500.0,0.00016973,2]
[398921756,1765998642058,-152.7,0.00016973,2]
[398921757,1765998642068,-500.0,0.00016986,2]
[398921758,1765998642077,-500.0,0.00016986,2]
[398921759,1765998642087,-500.0,0.00016986,2]
[398921760,1765998642096,-500.0,0.00016986,2]
[398921761,1765998642107,-500.0,0.00016986,2]
[398921762,1765998642117,-28241.72,0.00016986,2]
[398921763,1765998642126,-2198.0,0.00016986,2]
[398921764,1765998642136,-151.0,0.00016997,2]
[398921765,1765998642145,-151.0,0.00016997,2]
[398921766,1765998642155,-950.22,0.00016999,2]
[398921767,1765998642164,-950.22,0.00016999,2]
[398921768,1765998642173,-950.22,0.00016999,2]
[398921769,1765998642183,-950.22,0.00016999,2]
[398921771,1765998642192,-950.22,0.00016999,2]
[398921773,1765998642201,-950.22,0.00016999,2]
[398921775,1765998642210,-950.22,0.00016999,2]
[398921777,1765998642219,-950.22,0.00016999,2]
[398921779,1765998642229,-950.22,0.00016999,2]
[398921781,1765998642238,-950.22,0.00016999,2]
[398921783,1765998642248,-950.22,0.00016999,2]
[398921786,1765998642258,-950.22,0.00016999,2]
[398921788,1765998642268,-950.22,0.00016999,2]
[398921791,1765998642278,-950.22,0.00016999,2]
[398921793,1765998642287,-950.22,0.00016999,2]
[398921795,1765998642297,-950.22,0.00016999,2]
[398921796,1765998642306,-950.25816268,0.00016999,2]
[398921798,1765998642316,-500.0,0.00016999,2]
[398921800,1765998642325,-500.0,0.00016999,2]
[398921802,1765998642336,-500.0,0.00016999,2]
[398921804,1765998642347,-500.0,0.00016999,2]
[398921805,1765998642357,-500.0,0.00016999,2]
[398921807,1765998642366,-500.0,0.00016999,2]
[398921809,1765998642376,-500.0,0.00016999,2]
[398921811,1765998642386,-500.0,0.00016999,2]
[398921813,1765998642395,-500.0,0.00016999,2]
[398921816,1765998642405,-500.0,0.00016999,2]
[398921818,1765998642415,-499.99999999,0.00016999,2]
[398921820,1765998642425,-500.0,0.00016999,2]
[398921822,1765998642434,-500.0,0.00016999,2]
[398921823,1765998642443,-500.0,0.00016999,2]
[398921825,1765998642453,-500.0,0.00016999,2]
[398921827,1765998642462,-500.0,0.00016999,2]
[398921829,1765998642472,-500.0,0.00016999,2]
[398921831,1765998642481,-500.0,0.00016999,2]
[398921833,1765998642491,-500.0,0.00016999,2]
[398921835,1765998642500,-500.0,0.00016999,2]
[398921837,1765998642510,-221.82,0.00016999,2]
[398921838,1765998642520,-504.89372768,0.00016999,2]
[398921840,1765998642529,-500.0,0.00016999,2]
[398921842,1765998642539,-468.57497061,0.00016999,2]
[398921844,1765998642549,-1591817.28617091,0.00017,2]
[398921846,1765998642559,-250.0,0.00017,2]
[398921848,1765998642570,-528.5168124,0.00017,2]
[398921850,1765998642580,-2000.0,0.00017,2]
[398921851,1765998642589,-251.199987,0.00017,2]
[398921853,1765998642600,-151.0,0.00017,2]
[398921855,1765998642611,-151.0,0.00017,2]
[398921856,1765998642621,-151.0,0.00017,2]
[398921857,1765998642631,-403.67157132,0.00017,2]
[398921858,1765998642641,-212.1,0.00017003,2]
[398921859,1765998642650,-300.0,0.00017057,2]
[398921860,1765998642660,-153.01637236,0.00017057,2]
[398921861,1765998642670,-533.88981491,0.00017057,2]
[398921862,1765998642679,-1000.0,0.00017057,2]
[398921863,1765998642689,-1000.0,0.00017057,2]
[398921864,1765998642699,-1000.0,0.00017057,2]
[398921866,1765998642709,-1000.0,0.00017057,2]
[398921868,1765998642718,-1000.0,0.00017057,2]
[398921870,1765998642728,-1000.0,0.00017057,2]
[398921872,1765998642737,-1000.0,0.00017057,2]
[398921873,1765998642746,-784.18709393,0.00017057,2]
[398921875,1765998642759,-578.20924308,0.00017057,2]
[398921876,1765998642768,-2345.0,0.00017057,2]
[398921878,1765998642777,-620.0,0.00017057,2]
[398921880,1765998642787,-321.0,0.00017057,2]
[398921881,1765998642797,-250.0,0.00017057,2]
[398921882,1765998642807,-250.0,0.00017057,2]
[398921883,1765998642816,-250.0,0.00017057,2]
[398921884,1765998642826,-151.0,0.00017057,2]
[398921885,1765998642835,-250.0,0.00017057,2]
[398921886,1765998642845,-250.0,0.00017057,2]
[398921887,1765998642855,-250.0,0.00017057,2]
[398921888,1765998642864,-1000.0,0.00017057,2]
[398921889,1765998642876,-250.0,0.00017057,2]
[398921890,1765998642885,-1000.0,0.00017057,2]
[398921891,1765998642896,-250.0,0.00017057,2]
[398921892,1765998642905,-441.06037252,0.00017057,2]
[398921893,1765998642915,-1053.6249234,0.00017065,2]
[398921894,1765998642924,-250.0,0.00017065,2]
[398921895,1765998642934,-1000.0,0.00017066,2]
[398921896,1765998642944,-500.0,0.0001726,3]
[398921897,1765998642954,-500.0,0.00017318,2]
[398921898,1765998642963,-498.60294116,0.00017521,2]
[398921899,1765998642974,-561.7402289,0.00017521,2]
[398921900,1765998642987,-1000.0,0.00017521,2]
[398921901,1765998642997,-500.0,0.00017521,2]
[398921902,1765998643006,-500.0,0.00017521,2]
[398921903,1765998643016,-167.51806982,0.00017521,2]
[398921904,1765998643025,-1000.0,0.00017521,2]
[398921905,1765998643035,-1000.0,0.00017521,2]
[398921906,1765998643046,-1000.0,0.00017521,2]
[398921907,1765998643056,-501.15889228,0.00017521,2]
[398921908,1765998643066,-549.65597916,0.00017521,2]
[398921909,1765998643077,-1000.0,0.00017521,2]
[398921910,1765998643087,-1000.0,0.00017521,2]
[398921911,1765998643096,-1000.0,0.00017521,2]
[398921912,1765998643109,-1000.0,0.00017521,2]
[398921913,1765998643119,-1000.0,0.00017521,2]
[398921914,1765998643129,-1000.0,0.00017521,2]
[398921915,1765998643138,-1000.71124086,0.00017521,2]
[398921916,1765998643147,-1000.0,0.00017521,2]
[398921917,1765998643157,-834.11795043,0.00017521,2]
[398921918,1765998643167,-500.0,0.00017521,2]
[398921919,1765998643177,-502.16839762,0.00017521,2]
[398921920,1765998643187,-594.24401779,0.00017521,2]
[398921921,1765998643196,-1000.0,0.00017521,2]
[398921922,1765998643206,-1000.0,0.00017521,2]
[398921923,1765998643215,-1000.0,0.00017521,2]
[398921924,1765998643225,-500.0,0.00017534,4]
[398921925,1765998643235,-13296.18727066,0.00017572,2]
[398921926,1765998643245,-9523.83814419,0.00017573,2]
[398921927,1765998643255,-736.0,0.00017585,2]
[398921928,1765998643267,-553.64373807,0.00017605,2]
[398921929,1765998643276,-2345.0,0.00017605,2]
[398921930,1765998643289,-500.0,0.00017616,2]
[398921931,1765998643299,-403.0,0.000177,5]
[398921932,1765998643309,-212.1,0.00017742,2]
[398921933,1765998643318,-500.0,0.00017808,5]
[398921934,1765998643328,-823.42,0.00017808,2]
[398921935,1765998643338,-823.42,0.00017808,2]
[398921936,1765998643351,-823.42,0.00017808,2]
[398921937,1765998643364,-823.42,0.00017808,2]
[398921938,1765998643373,-823.42,0.00017808,2]
[398921939,1765998643383,-823.42,0.00017808,2]
[398921940,1765998643395,-823.42,0.00017808,2]
[398921941,1765998643404,-823.42,0.00017808,2]
[398921942,1765998643414,-823.42,0.00017808,2]
[398921943,1765998643423,-823.42,0.00017808,2]
[398921944,1765998643433,-823.42,0.00017808,2]
[398921945,1765998643443,-823.42,0.00017808,2]
[398921946,1765998643453,-823.42,0.00017808,2]
[398921947,1765998643463,-823.42,0.00017808,2]
[398921948,1765998643473,-7210.48397139,0.0001783,2]
[398921949,1765998643483,-11498.44893353,0.00017999,2]
[398921950,1765998643492,-16350.82229886,0.00018,2]
[398921951,1765998643502,-13976.61980351,0.00018,2]
[398921952,1765998643512,-1500.0,0.00018068,2]
[398921953,1765998643522,-500.0,0.00018068,2]
[398921954,1765998643531,-500.0,0.00018068,2]
[398921955,1765998643541,-1000.0,0.00018068,2]